[Event "45th FIDE Olympiad 2024"]
[Site "Budapest"]
[Date "2024.09.13"]
[Round "3.38"]
[White "Wojtaszek, Radoslaw"]
[Black "Felgaer, Ruben"]
[Result "1-0"]
[ECO "D17"]
[WhiteElo "2681"]
[BlackElo "2563"]
[Annotator "TA"]
[PlyCount "85"]
[EventDate "2024.09.05"]
[EventType "team-tourn"]
[EventCountry "HUN"]
[SourceTitle "playchess.com"]
[Source "ChessBase"]
[SourceQuality "1"]
[WhiteTeam "Poland"]
[BlackTeam "Argentina"]
[WhiteTeamCountry "POL"]
[BlackTeamCountry "ARG"]
[TimeControl "40/5400+30:1800+30"]

{[%evp 15,85,14,27,23,36,17,31,24,26,21,24,10,24,12,16,14,30,20,37,16,8,12,23,31,27,13,17,15,27,21,25,21,19,11,16,0,0,13,10,10,1,0,0,8,0,0,0,0,0,0,0,14,37,36,49,43,33,48,95,93,94,100,85,87,90,30,4710,914,839,825,647,637]} 1. d4 {[%emt 0:00:02]} d5 {[%emt 0:00:17]} 2. c4 {[%emt 0:00:05]} c6 {[%emt 0:00:07]} 3. Nf3 {[%emt 0:00:04]} Nf6 {[%emt 0:00:10]} 4. Nc3 {[%emt 0:00:03]} dxc4 {[%emt 0:00:30]} 5. a4 {[%emt 0:00:05]} Bf5 {[%emt 0:00:27]} 6. Ne5 {[%emt 0:00:04]} Nbd7 {[%emt 0:00:42]} 7. Nxc4 {[%emt 0:00:07]} Nb6 {[%emt 0:00:17]} 8. Ne5 {[%emt 0:00:05]} a5 {[%emt 0:00:19]} 9. h4 {[%emt 0:00:07]} h6 {[%emt 0:02:15]} 10. f3 {[%emt 0:00:17]} Nfd7 {[%emt 0:00:47]} 11. e4 {[%emt 0:00:36] White is slightly better.} Bh7 {[%emt 0:00:10]} 12. Nd3 {[%emt 0:00:18]} e6 {[%emt 0:00:22]} 13. Be3 {[%emt 0:00:29]} Bd6 {[%emt 0:00:45]} 14. Bf2 {[%emt 0:00:43] Prevents Bg3.} Qc7 {[%emt 0:00:31]} 15. Qc2 {[%emt 0:01:34]} Bg3 {[%emt 0:01:08]} 16. Bxg3 {[%emt 0:00:39]} Qxg3+ {[%emt 0:00:07]} 17. Qf2 {[%emt 0:00:05]} Qd6 {[%emt 0:00:35]} 18. Be2 {[%emt 0:00:23]} Qe7 {[%emt 0:02:19]} 19. f4 {[%emt 0:05:03]} Nc4 {[%emt 0:04:16]} 20. Bf3 {[%emt 0:05:52]} O-O {[%emt 0:01:08]} 21. Rd1 {[%emt 0:02:35]} Rad8 {[%emt 0:04:39]} 22. O-O {[%emt 0:04:08]} Kh8 {[%emt 0:07:04]} 23. Rfe1 {[%emt 0:05:35]} f6 {[%emt 0:06:38]} 24. Bg4 {[%emt 0:06:58]} Ncb6 {[%emt 0:22:21]} 25. d5 {[%emt 0:20:31]} e5 {[%emt 0:03:07]} 26. Be6 {[%emt 0:08:11]} cxd5 {[%emt 0:03:11]} 27. exd5 {[%emt 0:00:05]} Bxd3 $1 {[%emt 0:06:21]} 28. Rxd3 {[%emt 0:03:38]} Nc5 {[%emt 0:02:42]} 29. Rf3 {[%emt 0:01:06]} Nbxa4 {[%emt 0:12:18]} 30. Nxa4 {[%emt 0:03:44]} Nxa4 {[%emt 0:00:05]} 31. fxe5 {[%emt 0:03:36]} fxe5 {[%emt 0:00:40]} 32. Rxe5 {[%emt 0:01:21]} Rxf3 {[%emt 0:05:18]} 33. gxf3 {[%emt 0:00:05]} Qf6 {[%emt 0:03:26]} 34. f4 {[%emt 0:03:39]} b6 {[%emt 0:04:15]} 35. Bf5 {[%emt 0:10:05]} Nc5 {[%emt 0:01:41]} 36. h5 {[%emt 0:05:49]} Nd7 {[%emt 0:05:44]} (36... Qf7 $14 {feels stronger.}) 37. Bxd7 $16 {[%emt 0:00:06]} Rxd7 {[%emt 0:00:01][%mdl 4096] Endgame. KQR-KQR} 38. Re8+ {[%emt 0:00:10]} Kh7 {[%emt 0:00:07]} 39. Qc2+ {[%emt 0:00:09]} g6 {[%emt 0:00:15][%cal Bg7g6,Bg6f5][%mdl 32]} 40. Qe4 {[%emt 0:00:22] Prevents Qd4+} (40. Kg2 $16 {Strongly threatening Re6.} Qf5 41. hxg6+ (41. Qxf5 gxf5 42. Re5 a4 $14) 41... Qxg6+ 42. Qxg6+ Kxg6 43. Re5) 40... Rg7 $2 {[%emt 0:02:52][%mdl 8192] [#]} (40... Qf5 $11) 41. Re6 {[%emt 0:14:00]} (41. Kf1 $142 Qf5 42. Qxf5 gxf5 43. d6) 41... Qf5 $18 {[%emt 0:01:46]} 42. Qxf5 {[%emt 0:00:04]} gxf5+ {[%emt 0:00:04]} 43. Kf2 {[%emt 0:00:05] Weighted Error Value: White=0.07 (flawless) /Black=0.06 (flawless) .  Loses game:     	---       	Black=1      Mistake:       	White=2     	Black=1      OK:         	White=12    	Black=14     Best:        	White=4     	Black=4      Strong:       	---       	Black=1} 1-0

[Event "45th FIDE Olympiad 2024"]
[Site "Budapest"]
[Date "2024.09.13"]
[Round "3.38"]
[White "Espirito Santo, Waldyr"]
[Black "Mahendra, Gurung"]
[Result "1-0"]
[ECO "C02"]
[WhiteElo "1926"]
[BlackElo "1725"]
[Annotator "NA RC"]
[PlyCount "69"]
[EventDate "2024.09.05"]
[EventType "team-tourn"]
[EventCountry "HUN"]
[SourceTitle "playchess.com"]
[Source "ChessBase"]
[SourceQuality "1"]
[WhiteTeam "Sao Tome and Principe"]
[BlackTeam "Bhutan"]
[WhiteTeamCountry "SAO"]
[BlackTeamCountry "BTN"]
[TimeControl "40/5400+30:1800+30"]

1. e4 c5 2. c3 Nc6 3. d4 cxd4 4. cxd4 d5 5. e5 e6 6. Nf3 Bb4+ 7. Nc3 Nge7 8. Bd3 O-O 9. Bxh7+ Kxh7 10. Ng5+ Kg6 11. Qg4 f5 12. exf6 e5 13. Ne6+ Kxf6 14. Bg5+ Kf7 15. Nxd8+ Ke8 16. Qh4 Nxd8 17. dxe5 Be6 18. Qxb4 Nec6 19. Qd6 Rf7 20. Bxd8 Nxd8 21. O-O Rd7 22. Qc5 b6 23. Qb4 Rc8 24. Qh4 Rc4 25. Qh8+ Kf7 26. Nb5 Nb7 27. Rac1 a6 28. Rxc4 dxc4 29. Nd6+ Nxd6 30. exd6 b5 31. Qh5+ g6 32. Qh7+ Kf6 33. Qh8+ Kf5 34. Re1 Bf7 35. Qe5+ 1-0

[Event "45th FIDE Olympiad 2024"]
[Site "Budapest"]
[Date "2024.09.13"]
[Round "3.39"]
[White "Flores, Diego"]
[Black "Piorun, Kacper"]
[Result "0-1"]
[ECO "A21"]
[WhiteElo "2546"]
[BlackElo "2599"]
[Annotator "RC"]
[PlyCount "90"]
[EventDate "2024.09.05"]
[EventType "team-tourn"]
[EventCountry "HUN"]
[SourceTitle "playchess.com"]
[Source "ChessBase"]
[SourceQuality "1"]
[WhiteTeam "Argentina"]
[BlackTeam "Poland"]
[WhiteTeamCountry "ARG"]
[BlackTeamCountry "POL"]
[TimeControl "40/5400+30:1800+30"]

1. c4 {[%emt 0:00:11]} e5 {[%emt 0:00:09]} 2. Nc3 {[%emt 0:01:17]} Bb4 {[%emt 0:00:09]} 3. Nd5 {[%emt 0:00:21]} a5 {[%emt 0:00:06]} 4. Nf3 {[%emt 0:01:37]} d6 {[%emt 0:00:54]} 5. a3 {[%emt 0:00:28]} Bc5 {[%emt 0:00:04]} 6. e3 {[%emt 0:01:23]} c6 7. d4 {[%emt 0:01:04]} Ba7 {[%emt 0:01:05]} 8. Nc3 {[%emt 0:00:30]} Nd7 {[%emt 0:00:30]} 9. Be2 {[%emt 0:00:40]} Ngf6 {[%emt 0:00:11]} 10. g4 {[%emt 0:00:15]} exd4 {[%emt 0:00:49]} 11. exd4 {[%emt 0:00:19]} d5 {[%emt 0:00:09]} 12. g5 {[%emt 0:00:19]} Ne4 {[%emt 0:00:06]} 13. cxd5 {[%emt 0:00:07]} Nxc3 {[%emt 0:00:07]} 14. bxc3 {[%emt 0:00:04]} cxd5 {[%emt 0:01:05]} 15. Bd3 {[%emt 0:00:27]} O-O {[%emt 0:00:11]} 16. h4 {[%emt 0:00:10]} Re8+ {[%emt 0:01:39]} 17. Kf1 {[%emt 0:00:13]} Nf8 {[%emt 0:05:45]} 18. Ne5 {[%emt 0:03:03]} Be6 {[%emt 0:04:00]} 19. h5 {[%emt 0:50:54]} Rc8 {[%emt 0:18:31]} 20. g6 {[%emt 0:16:34]} Rxc3 {[%emt 0:12:07]} 21. Qf3 {[%emt 0:00:49]} fxg6 {[%emt 0:08:33]} 22. hxg6 {[%emt 0:00:39]} hxg6 {[%emt 0:01:01]} 23. Bd2 {[%emt 0:07:52]} Rb3 {[%emt 0:00:33]} 24. Qf4 {[%emt 0:05:39]} Bb8 {[%emt 0:02:10]} 25. Bc2 {[%emt 0:03:16]} Rh3 {[%emt 0:11:20]} 26. Kg2 {[%emt 0:00:27]} Rh5 {[%emt 0:06:31]} 27. Rxh5 {[%emt 0:01:07]} gxh5 {[%emt 0:00:05]} 28. Rh1 {[%emt 0:00:07]} Bxe5 {[%emt 0:00:43]} 29. dxe5 {[%emt 0:00:15]} Bf7 {[%emt 0:00:14]} 30. Qg3 {[%emt 0:00:35]} Qc7 {[%emt 0:02:22]} 31. Bd3 {[%emt 0:04:17]} Qxe5 {[%emt 0:00:52]} 32. Bf4 {[%emt 0:00:16]} Qf6 {[%emt 0:01:45]} 33. Bg5 {[%emt 0:00:32]} Qe6 {[%emt 0:01:00]} 34. Rb1 {[%emt 0:00:21]} b6 {[%emt 0:01:07]} 35. Rc1 {[%emt 0:01:07]} Bg6 {[%emt 0:00:40]} 36. Bb5 {[%emt 0:00:23]} Rc8 {[%emt 0:00:24]} 37. Rxc8 {[%emt 0:00:30]} Qxc8 {[%emt 0:00:03]} 38. Be3 {[%emt 0:00:10]} Qe6 {[%emt 0:03:42]} 39. Kh2 {[%emt 0:00:44]} Qf6 {[%emt 0:01:24]} 40. Bg5 {[%emt 0:00:49]} Qb2 {[%emt 0:02:58]} 41. a4 {[%emt 0:04:56]} Be4 {[%emt 0:06:50]} 42. Be3 {[%emt 0:00:29]} Qf6 {[%emt 0:02:27]} 43. Bg5 {[%emt 0:04:20]} Qf5 {[%emt 0:02:45]} 44. Be8 {[%emt 0:04:19]} Nh7 {[%emt 0:05:10]} 45. Bh6 {[%emt 0:01:26]} Kf8 {[%emt 0:00:42]} 0-1

[Event "45th FIDE Olympiad 2024"]
[Site "Budapest"]
[Date "2024.09.13"]
[Round "3.39"]
[White "Suk, Raj Monger"]
[Black "Nascimento, Admilton De Ceita Do"]
[Result "0-1"]
[ECO "B06"]
[WhiteElo "1821"]
[BlackElo "1908"]
[Annotator "NA RC"]
[PlyCount "102"]
[EventDate "2024.09.05"]
[EventType "team-tourn"]
[EventCountry "HUN"]
[SourceTitle "playchess.com"]
[Source "ChessBase"]
[SourceQuality "1"]
[WhiteTeam "Bhutan"]
[BlackTeam "Sao Tome and Principe"]
[WhiteTeamCountry "BTN"]
[BlackTeamCountry "SAO"]
[TimeControl "40/5400+30:1800+30"]

1. e4 d6 2. d4 g6 3. Nc3 Bg7 4. Nf3 Nd7 5. Bc4 Ngf6 6. Bxf7+ Kf8 7. Ng5 Nb6 8. Be6 Qe8 9. e5 h6 10. exf6 exf6 11. O-O hxg5 12. Bxc8 Qxc8 13. Qf3 g4 14. Qd3 f5 15. f3 gxf3 16. Rxf3 Qe6 17. Bg5 Qc4 18. Qxc4 Nxc4 19. Ne2 Re8 20. Rf2 Nxb2 21. Rb1 b6 22. h4 Kg8 23. Kh2 Nc4 24. g4 Ne3 25. Kg3 Nxg4 26. Rg2 Kh7 27. Rf1 Re4 28. c3 Rhe8 29. Ng1 c5 30. Nf3 cxd4 31. cxd4 Bxd4 32. Bf4 Kg7 33. Ng5 Re2 34. Rxe2 Rxe2 35. Bxd6 Re3+ 36. Kf4 Bf6 37. Rc1 Rc3 38. Rxc3 Bxc3 39. Bb8 Bd2+ 40. Kf3 Bxg5 41. hxg5 a6 42. a4 Kf7 43. Bc7 b5 44. axb5 axb5 45. Ke2 Ke6 46. Kd3 Kd5 47. Bg3 Ne5+ 48. Ke3 b4 49. Be1 b3 50. Bc3 b2 51. Kf4 b1=Q 0-1

[Event "45th FIDE Olympiad 2024"]
[Site "Budapest"]
[Date "2024.09.13"]
[Round "3.40"]
[White "Bartel, Mateusz"]
[Black "Sosa, Tomas"]
[Result "0-1"]
[ECO "C45"]
[WhiteElo "2618"]
[BlackElo "2515"]
[Annotator "RC"]
[PlyCount "114"]
[EventDate "2024.09.05"]
[EventType "team-tourn"]
[EventCountry "HUN"]
[SourceTitle "playchess.com"]
[Source "ChessBase"]
[SourceQuality "1"]
[WhiteTeam "Poland"]
[BlackTeam "Argentina"]
[WhiteTeamCountry "POL"]
[BlackTeamCountry "ARG"]
[TimeControl "40/5400+30:1800+30"]

1. e4 {[%emt 0:00:04]} e5 {[%emt 0:00:10]} 2. Nf3 {[%emt 0:00:05]} Nc6 {[%emt 0:00:08]} 3. d4 {[%emt 0:00:04]} exd4 {[%emt 0:00:13]} 4. Nxd4 {[%emt 0:00:07]} Bc5 {[%emt 0:07:01]} 5. Nb3 {[%emt 0:00:30]} Bb6 {[%emt 0:00:07]} 6. Qe2 {[%emt 0:00:05]} a5 {[%emt 0:00:04]} 7. a4 {[%emt 0:00:10]} d6 {[%emt 0:00:09]} 8. Be3 {[%emt 0:02:08]} Bxe3 {[%emt 0:00:53]} 9. Qxe3 {[%emt 0:00:03]} Be6 {[%emt 0:03:11]} 10. Nc3 {[%emt 0:12:02]} Bxb3 {[%emt 0:12:20]} 11. cxb3 {[%emt 0:01:05]} Nf6 {[%emt 0:00:14]} 12. Bc4 {[%emt 0:05:49]} Nb4 {[%emt 0:02:35]} 13. O-O {[%emt 0:21:37]} O-O {[%emt 0:09:57]} 14. Rad1 {[%emt 0:00:06]} Re8 {[%emt 0:02:58]} 15. Qg3 {[%emt 0:03:40]} Qe7 {[%emt 0:04:16]} 16. Rfe1 {[%emt 0:01:01]} Rad8 {[%emt 0:04:57]} 17. h3 {[%emt 0:13:31]} c6 {[%emt 0:02:42]} 18. Re2 {[%emt 0:00:06]} Qe5 {[%emt 0:08:20]} 19. Qe3 {[%emt 0:10:02]} Nd7 {[%emt 0:07:13]} 20. Qa7 {[%emt 0:04:28]} Qc5 {[%emt 0:06:00]} 21. Qxc5 {[%emt 0:00:11]} Nxc5 {[%emt 0:00:04]} 22. f3 {[%emt 0:03:56]} Rd7 {[%emt 0:00:50]} 23. Red2 {[%emt 0:00:25]} Red8 {[%emt 0:00:13]} 24. h4 {[%emt 0:00:05]} Kf8 {[%emt 0:00:18]} 25. Kf2 {[%emt 0:00:32]} Nca6 {[%emt 0:03:22]} 26. f4 {[%emt 0:03:40]} Nc7 {[%emt 0:01:49]} 27. Be2 {[%emt 0:00:03]} d5 {[%emt 0:03:12]} 28. Bg4 {[%emt 0:00:32]} Re7 {[%emt 0:01:22]} 29. Bf3 {[%emt 0:00:30]} d4 {[%emt 0:01:55]} 30. e5 {[%emt 0:03:48]} Ne6 {[%emt 0:01:05]} 31. Kg3 {[%emt 0:00:11]} Red7 {[%emt 0:08:55]} 32. Ne4 {[%emt 0:00:47]} d3 {[%emt 0:00:20]} 33. Bg4 {[%emt 0:02:08]} Rd4 {[%emt 0:00:39]} 34. Bxe6 {[%emt 0:02:20]} Rxe4 {[%emt 0:00:06]} 35. Bf5 {[%emt 0:00:48]} Red4 {[%emt 0:00:19]} 36. Kf3 {[%emt 0:01:07]} g6 {[%emt 0:02:02]} 37. Be4 {[%emt 0:00:04]} f5 {[%emt 0:04:32]} 38. exf6 {[%emt 0:00:06]} Kf7 {[%emt 0:00:09]} 39. g4 {[%emt 0:02:02]} Kxf6 {[%emt 0:00:20]} 40. g5+ {[%emt 0:00:06]} Kg7 {[%emt 0:00:34]} 41. h5 {[%emt 0:32:37]} R8d7 {[%emt 0:10:11]} 42. h6+ {[%emt 0:00:00]} Kf8 {[%emt 0:00:38]} 43. Ke3 {[%emt 0:00:00]} c5 {[%emt 0:05:01]} 44. Rxd3 {[%emt 0:00:00]} Nxd3 {[%emt 0:01:03]} 45. Rxd3 {[%emt 0:00:00]} b6 {[%emt 0:10:05]} 46. Rxd4 {[%emt 0:00:00]} cxd4+ {[%emt 0:00:21]} 47. Ke2 {[%emt 0:00:00]} Rf7 {[%emt 0:00:22]} 48. Kf3 {[%emt 0:00:00]} Re7 {[%emt 0:00:18]} 49. b4 {[%emt 0:00:00]} axb4 {[%emt 0:00:07]} 50. b3 {[%emt 0:00:00]} Rc7 {[%emt 0:06:37]} 51. Ke2 {[%emt 0:00:00]} Rf7 {[%emt 0:01:03]} 52. Kd3 {[%emt 0:01:22]} Rxf4 {[%emt 0:00:04]} 53. Kxd4 {[%emt 0:00:05]} Rg4 {[%emt 0:01:06]} 54. Kd5 {[%emt 0:00:01]} Rxg5+ {[%emt 0:00:54]} 55. Kc6 {[%emt 0:00:05]} Re5 {[%emt 0:00:04]} 56. Bd3 {[%emt 0:00:16]} Re6+ {[%emt 0:00:29]} 57. Kb5 {[%emt 0:00:02]} g5 {[%emt 0:00:35]} 0-1

[Event "45th FIDE Olympiad 2024"]
[Site "Budapest"]
[Date "2024.09.13"]
[Round "3.40"]
[White "Semedo, Adelino"]
[Black "Lhundrup, M Dorji"]
[Result "1-0"]
[ECO "D02"]
[WhiteElo "1827"]
[BlackElo "1715"]
[Annotator "NA"]
[PlyCount "99"]
[EventDate "2024.09.05"]
[EventType "team-tourn"]
[EventCountry "HUN"]
[SourceTitle "playchess.com"]
[Source "ChessBase"]
[SourceQuality "1"]
[WhiteTeam "Sao Tome and Principe"]
[BlackTeam "Bhutan"]
[WhiteTeamCountry "SAO"]
[BlackTeamCountry "BTN"]
[TimeControl "40/5400+30:1800+30"]

1. d4 Nf6 2. Nf3 e6 3. g3 c5 4. c3 Nc6 5. Bg2 d5 6. O-O Bd6 7. Nbd2 O-O 8. Re1 Qb6 9. e4 dxe4 10. Nc4 Qc7 11. Ng5 cxd4 12. cxd4 Bb4 13. Re2 Nxd4 14. Qxd4 Rd8 15. Bf4 Rxd4 16. Bxc7 Rxc4 17. Bf4 Bd7 18. a3 Ba5 19. Nxe4 Nxe4 20. Rxe4 Rc2 21. Rd4 Bc6 22. Bxc6 bxc6 23. b4 Bb6 24. Rd2 Rxd2 25. Bxd2 Rd8 26. Bc3 Rd3 27. Rc1 h5 28. Kf1 Rf3 29. Rc2 Rf5 30. a4 a5 31. Be1 axb4 32. Rxc6 Ba5 33. Rc8+ Kh7 34. Rb8 h4 35. Bxb4 Bc7 36. Rb5 Rf3 37. Rh5+ Kg6 38. Rxh4 Kf5 39. Rc4 Bb6 40. Bc5 Bxc5 41. Rxc5+ Kf6 42. a5 Ra3 43. Kg2 Ke7 44. Rb5 f5 45. Rb7+ Kf6 46. Ra7 Ra4 47. a6 g5 48. Ra8 g4 49. a7 Ke7 50. Rh8 1-0

[Event "45th FIDE Olympiad 2024"]
[Site "Budapest"]
[Date "2024.09.13"]
[Round "3.41"]
[White "Suleymanli, Aydin"]
[Black "Schitco, Ivan"]
[Result "1-0"]
[ECO "B12"]
[WhiteElo "2632"]
[BlackElo "2527"]
[Annotator "TA"]
[PlyCount "101"]
[EventDate "2024.09.05"]
[EventType "team-tourn"]
[EventCountry "HUN"]
[SourceTitle "playchess.com"]
[Source "ChessBase"]
[SourceQuality "1"]
[WhiteTeam "Azerbaijan"]
[BlackTeam "Moldova"]
[WhiteTeamCountry "AZE"]
[BlackTeamCountry "MDA"]
[TimeControl "40/5400+30:1800+30"]

{[%evp 9,101,14,29,19,42,37,26,36,37,32,36,39,55,11,9,12,14,27,21,0,0,-24,-4,-12,0,0,0,0,0,6,0,0,54,50,82,99,133,127,122,148,203,149,543,558,505,333,311,247,235,220,234,127,143,144,146,139,352,352,353,344,331,272,366,310,311,268,247,237,422,250,258,205,261,275,324,211,193,193,245,246,252,258,547,280,1968,6436,7980,6970,5539,10707,29973,29974,29968,6909]} 1. e4 {[%emt 0:00:07]} c6 {[%emt 0:00:06]} 2. d4 {[%emt 0:01:08]} d5 {[%emt 0:00:07]} 3. e5 {[%emt 0:00:02]} Bf5 {[%emt 0:00:08]} 4. Nf3 {[%emt 0:00:07]} e6 {[%emt 0:00:17]} 5. Be2 {[%emt 0:00:07]} a6 {[%emt 0:00:19]} 6. O-O {[%emt 0:01:39]} Bg6 {[%emt 0:00:20]} 7. Nbd2 {[%emt 0:05:31]} c5 {[%emt 0:01:10]} 8. c4 {[%emt 0:02:35] White has an edge.} Nc6 {[%emt 0:00:38]} 9. cxd5 {[%emt 0:05:34]} exd5 {[%emt 0:00:05]} 10. a3 {[%emt 0:03:17]} Rc8 {[%emt 0:00:35]} 11. dxc5 {[%emt 0:05:20]} Bxc5 {[%emt 0:00:48]} 12. b4 {[%emt 0:01:56]} Ba7 {[%emt 0:09:49]} 13. Bb2 {[%emt 0:03:55]} Nge7 {[%emt 0:03:43]} 14. e6 {[%emt 0:18:45]} f6 {[%emt 0:11:05]} 15. Nh4 {[%emt 0:05:24]} O-O {[%emt 0:06:40]} 16. Nxg6 {[%emt 0:13:19]} hxg6 {[%emt 0:03:59]} 17. Bd3 {[%emt 0:06:25]} Qd6 {[%emt 0:08:19][%cal Oc6e5]} 18. Re1 {[%emt 0:04:36]} Ne5 {[%emt 0:08:51]} 19. Nf3 {[%emt 0:00:30]} N7c6 {[%emt 0:11:53]} 20. e7 {[%emt 0:06:19]} Rfe8 {[%emt 0:07:16]} (20... Nxe7 $11 21. Nxe5 fxe5 22. Bxe5 Bxf2+ 23. Kh1 Qb6) 21. Nxe5 $14 {[%emt 0:03:33]} fxe5 {[%emt 0:00:49]} 22. Qg4 {[%emt 0:00:08]} Qf6 {[%emt 0:07:28] [#]} (22... Nxe7 $2 23. Rxe5 (23. Bxe5 Qb6 $18) 23... Rf8 24. Rf1 $18) (22... e4 $2 23. Rxe4 Nxe7 (23... Bxf2+ $2 24. Kxf2 g5 25. Qxg5 $18) 24. Re6 $18) 23. Kh1 $1 {[%emt 0:01:51] Chess con chili. Active counter play!} Nxe7 {[%emt 0:05:22]} 24. Rxe5 {[%emt 0:02:52]} Qf7 {[%emt 0:02:41]} (24... Bb8 $16 {is a better defense.} 25. Re2 Qf7) 25. Rae1 {[%emt 0:03:50]} Rc6 $2 {[%emt 0:03:07][%mdl 8192]} (25... Nf5 $16 {is more resistant.}) 26. Qd7 $18 {[%emt 0:01:20][%csl LRb7,LRe7]} Kf8 {[%emt 0:01:03]} 27. Qxb7 {[%emt 0:01:14]} Bxf2 {[%emt 0:00:28] [#]} 28. Qxc6 $3 {[%emt 0:01:05][%mdl 512]} Bxe1 {[%emt 0:01:08]} 29. Qxa6 $40 {[%emt 0:00:13][%mdl 128] White has strong attack.} Bh4 {[%emt 0:00:11]} 30. Re3 {[%emt 0:01:57]} (30. Bc1 $18) 30... Nf5 $16 {[%emt 0:00:49]} 31. Rf3 {[%emt 0:00:29]} Re1+ {[%emt 0:01:44]} 32. Rf1 {[%emt 0:00:37]} Kg8 $2 {[%emt 0:02:16]} (32... Rxf1+ $16 33. Bxf1 Kg8) 33. Rxe1 $18 {[%emt 0:00:33]} Bxe1 {[%emt 0:00:02]} 34. Qc8+ {[%emt 0:00:06]} Kh7 {[%emt 0:00:04]} 35. Qc1 {[%emt 0:00:14]} Qe6 {[%emt 0:00:30]} 36. Qf4 {[%emt 0:00:44] Prevents Bf2} Bh4 {[%emt 0:01:31]} 37. Qe5 {[%emt 0:00:21]} Qd7 {[%emt 0:00:07]} 38. Qe2 {[%emt 0:00:17]} d4 $2 {[%emt 0:01:46]} (38... Bd8 39. b5 Qd6) 39. b5 {[%emt 0:01:16]} (39. Bxf5 $142 Qxf5 40. Bxd4) 39... Bf6 {[%emt 0:00:34]} 40. Qe4 {[%emt 0:00:34]} Qc7 {[%emt 0:00:45]} 41. g3 {[%emt 0:30:37]} (41. a4 Qa7 42. g4 Nh4 $11) 41... Qa5 {[%emt 0:04:33]} 42. Qe2 {[%emt 0:00:00]} Ne3 {[%emt 0:01:11]} 43. Bc1 {[%emt 0:00:00]} Qc3 {[%emt 0:05:26]} (43... Kg8 $142 44. Bxg6 Kf8) 44. Bxe3 {[%emt 0:00:00]} dxe3 {[%emt 0:00:45]} 45. Qxe3 {[%emt 0:00:00][%mdl 4096] Endgame. KQB-KQB} Qb2 $2 {[%emt 0:02:54]} (45... Qa1+ 46. Kg2 Bd8) 46. h4 {[%emt 0:00:00] Threatens to win with Qe4.} Qe5 {[%emt 0:01:17]} (46... Qd4 47. Qxd4 Bxd4) 47. Qxe5 {[%emt 0:00:00]} Bxe5 {[%emt 0:00:01]} 48. Kg2 {[%emt 0:00:00] And now g4 would win.} Bc7 {[%emt 0:01:46]} 49. g4 {[%emt 0:00:00][%cal Bg3g4,Bg4g5][%mdl 32]} Kh6 {[%emt 0:00:32]} 50. g5+ {[%emt 0:00:00]} Kh7 {[%emt 0:00:02]} 51. Kf3 {[%emt 0:00:00] Weighted Error Value: White=0.28 (precise) /Black=0.54.  Loses game:     	---       	Black=2      Mistake:       	White=2     	Black=6      Inaccurate:     	White=3     	Black=3      OK:         	White=16    	Black=13     Best:        	White=5     	Black=4      Strong:       	White=1     	---} (51. a4 $142 Kg8 52. Bxg6 Kf8 53. Kf3 Ke7 54. Kg4 Ke6 55. Bd3 Kd6 56. Kh5) 1-0

[Event "45th FIDE Olympiad 2024"]
[Site "Budapest"]
[Date "2024.09.13"]
[Round "3.41"]
[White "Ayyad, Husain"]
[Black "Aziz, Husain"]
[Result "1/2-1/2"]
[ECO "C56"]
[WhiteElo "2129"]
[BlackElo "2340"]
[Annotator "RC"]
[PlyCount "120"]
[EventDate "2024.09.05"]
[EventType "team-tourn"]
[EventCountry "HUN"]
[SourceTitle "playchess.com"]
[Source "ChessBase"]
[SourceQuality "1"]
[WhiteTeam "Bahrain"]
[BlackTeam "Qatar"]
[WhiteTeamCountry "BHN"]
[BlackTeamCountry "QAT"]
[TimeControl "40/5400+30:1800+30"]

1. e4 e5 2. Nf3 Nc6 3. d4 exd4 4. Bc4 Nf6 5. e5 d5 6. Bb5 Nd7 7. O-O Be7 8. Bxc6 bxc6 9. e6 fxe6 10. Nxd4 Nb8 11. Re1 O-O 12. Nxe6 Bxe6 13. Rxe6 Bc5 14. Be3 d4 15. Bd2 Qd5 16. Qg4 Nd7 17. b4 Bd6 18. Re2 Ne5 19. Qe4 Rae8 20. Qxd5+ cxd5 21. Kf1 Nc4 22. Rxe8 Rxe8 23. a3 Kf7 24. Bc1 a5 25. bxa5 Ra8 26. Nd2 Rxa5 27. Nb3 Ra8 28. a4 c5 29. f4 Ke6 30. g4 Ne3+ 31. Bxe3 dxe3 32. Ke2 d4 33. a5 Kd5 34. a6 c4 35. Ra5+ Ke4 36. Nc1 Bxf4 37. h3 Bd6 38. Ra4 Kd5 39. c3 Bc5 40. cxd4 Bxd4 41. Na2 Kc5 42. a7 Kc6 43. Rxc4+ Kd5 44. Ra4 Rxa7 45. Rxa7 Bxa7 46. Nc3+ Ke5 47. Kf3 Bc5 48. h4 Kd4 49. Ne2+ Kd3 50. h5 h6 51. Nf4+ Kd2 52. Ne2 Bb6 53. Nf4 Bc7 54. Ne2 Be5 55. Ng1 Kd3 56. Ne2 Bb8 57. Ng1 Bh2 58. Ne2 Kd2 59. Nd4 Be5 60. Ne2 Kd3 1/2-1/2

[Event "45th FIDE Olympiad 2024"]
[Site "Budapest"]
[Date "2024.09.13"]
[Round "3.42"]
[White "Macovei, Andrei"]
[Black "Abasov, Nijat"]
[Result "1/2-1/2"]
[ECO "B11"]
[WhiteElo "2464"]
[BlackElo "2626"]
[Annotator "RC"]
[PlyCount "49"]
[EventDate "2024.09.05"]
[EventType "team-tourn"]
[EventCountry "HUN"]
[SourceTitle "playchess.com"]
[Source "ChessBase"]
[SourceQuality "1"]
[WhiteTeam "Moldova"]
[BlackTeam "Azerbaijan"]
[WhiteTeamCountry "MDA"]
[BlackTeamCountry "AZE"]
[TimeControl "40/5400+30:1800+30"]

1. e4 {[%emt 0:00:04]} c6 {[%emt 0:00:04]} 2. Nf3 {[%emt 0:00:53]} d5 {[%emt 0:00:08]} 3. Nc3 {[%emt 0:00:03]} dxe4 {[%emt 0:00:24]} 4. Nxe4 {[%emt 0:00:02]} Nf6 {[%emt 0:00:12]} 5. Qe2 {[%emt 0:01:10]} Nxe4 {[%emt 0:01:12]} 6. Qxe4 {[%emt 0:00:02]} Nd7 {[%emt 0:00:09]} 7. d4 {[%emt 0:01:08]} Nf6 {[%emt 0:00:13]} 8. Qd3 {[%emt 0:01:05]} g6 {[%emt 0:00:50]} 9. Be2 {[%emt 0:03:16]} Bg7 {[%emt 0:01:17]} 10. O-O {[%emt 0:00:19]} O-O {[%emt 0:00:20]} 11. h3 {[%emt 0:12:04]} Qc7 {[%emt 0:09:33]} 12. c4 {[%emt 0:08:15]} Rd8 {[%emt 0:07:50]} 13. Rd1 {[%emt 0:15:07]} Bf5 {[%emt 0:11:25]} 14. Qb3 {[%emt 0:09:02]} b5 {[%emt 0:01:51]} 15. Bg5 {[%emt 0:10:53]} bxc4 {[%emt 0:16:16]} 16. Bxc4 {[%emt 0:03:00]} Nd5 {[%emt 0:00:21]} 17. Bh4 {[%emt 0:01:23]} Rdb8 {[%emt 0:23:55]} 18. Qa3 {[%emt 0:00:26]} Rb6 {[%emt 0:04:01]} 19. Bxd5 {[%emt 0:11:53]} cxd5 {[%emt 0:00:19]} 20. Bxe7 {[%emt 0:00:12]} Qb7 {[%emt 0:00:36]} 21. b3 {[%emt 0:04:42]} Ra6 {[%emt 0:01:39]} 22. Qb4 {[%emt 0:00:14]} Rb6 {[%emt 0:00:05]} 23. Qa3 {[%emt 0:00:11]} Ra6 {[%emt 0:01:11]} 24. Qb4 {[%emt 0:00:07]} Rb6 {[%emt 0:00:06]} 25. Qa3 {[%emt 0:01:15]} 1/2-1/2